Cogmind - Beta 17.1 @@@ ROGUE MODE // 2026.09.15 @ 09:16:08 Player: Kotyk77 Result: Destroyed by 2B-NNU(R) with Subdweller Machine Gun Performance ------------- Evolutions (0) 0 Regions Visited (3) 600 Robots Destroyed (26) 130 Value Destroyed (653) 653 Prototype IDs (2) 40 Alien Tech Used (0) 0 Bonus (0) 0 TOTAL SCORE: 1423 Bonus ------- None Cogmind --------- Core Integrity 0/250 Matter 235/300 Energy 87/250 System Corruption 0% Temperature Cool (0) Movement Treading (160) Location -10/Subcaves Parts ------- > --- POWER (1) -------- Ion Engine > --- PROPULSION (2) --- Light Treads Light Treads > --- UTILITY (2) ------ Improved Heat Sink Large Storage Unit > --- WEAPON (2) ------- Beam Cannon Grenade Launcher > --- INVENTORY (15) --- Ion Engine Medium Storage Unit Large Storage Unit Structural Scanner Improved Terrain Scanner Transport Network Coupler Power Shielding Utility Shielding EM Pulse Gun Medium Laser Peak State ------------ > --- POWER ------------ Ion Engine > --- PROPULSION ------- Light Treads Light Treads > --- UTILITY ---------- Large Storage Unit Improved Terrain Scanner > --- WEAPON ----------- Medium Laser Medium Laser > --- INVENTORY -------- Ion Engine Compact Wheel Compact Wheel Medium Storage Unit Large Storage Unit Power Shielding Utility Shielding EM Pulse Gun EM Pulse Gun Beam Cannon [Rating: 10] Favorites ----------- Power Ion Engine Engine Ion Engine Propulsion Light Treads Treads Light Treads Utility Large Storage Unit Device Improved Terrain Scanner Storage Large Storage Unit Weapon Medium Laser Energy Gun Medium Laser Energy Cannon Beam Cannon Launcher Grenade Launcher Build | -11 -10 -10 -10 ------- Run | Yrd Mat Min Sub Slots Evolved . | . . . . Power . | . . . . Propulsion . | . . . . Utility . | . . . . Weapon . | . . . . Parts Attached 20 | 8 4 4 4 Power 3 | 1 . 1 1 Engine 3 | 1 . 1 1 Core . | . . . . Reactor . | . . . . Propulsion 6 | 2 2 . 2 Treads 6 | 2 2 . 2 Leg . | . . . . Wheel . | . . . . Hover . | . . . . Flight . | . . . . Utility 5 | 2 1 2 . Device 3 | 1 . 2 . Storage 2 | 1 1 . . Processor . | . . . . Hackware . | . . . . Protection . | . . . . Artifact . | . . . . Weapon 6 | 3 1 1 1 Energy Gun 4 | 3 1 . . Energy Cannon 1 | . . 1 . Ballistic Gun . | . . . . Ballistic Cannon . | . . . . Launcher 1 | . . . 1 Special Weapon . | . . . . Impact Weapon . | . . . . Slashing Weapon . | . . . . Piercing Weapon . | . . . . Special Melee Weapon . | . . . . Unidentified Prototypes . | . . . . Parts Lost 5 | . . 1 4 Power 1 | . . . 1 Propulsion 2 | . . . 2 Utility . | . . . . Weapon 2 | . . 1 1 Highest Loss Streak 4 | . . 1 4 To Critical Strikes 1 | . . . 1 Average Backups 11 | 3 11 14 13 Power 1 | . 1 2 1 Propulsion 1 | 1 2 2 1 Utility 4 | . 4 7 7 Weapon 3 | . 3 3 2 Tool/Special . | . . . . Unused Backups 12 | . 3 . 9 Power 1 | . . . 1 Propulsion 2 | . 2 . . Utility 6 | . . . 6 Weapon 3 | . 1 . 2 Tool/Special . | . . . . Average Slot Usage (%) 99 | . 100 99 95 Engine 14 | . 14 14 14 Treads 27 | . 28 28 23 Device 14 | . 14 14 14 Storage 14 | . 14 14 14 Energy Gun 25 | . 28 21 9 Energy Cannon 1 | . . 5 14 Peak Build Rating 10 | 9 10 10 10 Average Rating 9 | 5 9 9 9 On Entrance 7 | . 9 10 10 Avg Prop Armor Cover (%) . | . . . . Naked Turns . | . . . . Heaviest Build 32 | 15 30 31 32 Greatest Support 40 | 40 40 40 40 Greatest Overweight (x) 1 | 1 . . . Average Overweight (x) . | . . . . Largest Inventory Capacity 15 | 8 15 15 15 Average Capacity 13 | 7 14 15 15 Most Carried 15 | 4 15 15 14 Average Carried 11 | 3 11 14 13 Final Capacity 15 | 8 15 15 15 Final Carried 15 | 4 15 14 10 Class Distribution -------------------- 100% | Mutant Dominant Class ---------------- Mutant | -10/Materials Mutant | -10/Mines Mutant | -10/Subcaves Resources | -11 -10 -10 -10 ----------- Run | Yrd Mat Min Sub Matter Collected 380 | 280 60 40 . Remotely . | . . . . Salvage Created 1057 | 171 406 355 125 Parts 43 | 10 18 3 12 Haulers Intercepted 1 | . 1 . . Recyclers Shooed 3 | . 2 1 . Parts Field Recycled . | . . . . Retrieved Matter . | . . . . Parts Self-Destructed . | . . . . Prevented . | . . . . Parts Restored . | . . . . Kills | -11 -10 -10 -10 ------- Run | Yrd Mat Min Sub Combat Hostiles Destroyed 14 | . 4 6 4 Guns 6 | . 3 3 . Cannons 1 | . . . 1 AOE 2 | . . . 2 Classes Destroyed 7 | 2 4 . 1 Builder 1 | . 1 . . Tunneler 4 | 4 . . . Hauler 1 | . 1 . . Recycler 3 | 1 1 1 . Watcher 3 | . 3 . . Grunt 10 | . 4 6 . Subdweller 4 | . . . 4 Best Kill Streak 4 | 2 2 3 4 Combat Bots Only 4 | . 2 2 4 Max Kills in Single Turn 2 | 1 1 1 2 Gunslinging . | . . . . Exploded 2 | . . . 2 Melee . | . . . . Uniques/NPCs Destroyed . | . . . . Combat | -11 -10 -10 -10 -------- Run | Yrd Mat Min Sub Hostile Shots Fired 88 | . 19 46 23 Missed 19 | . 5 9 5 Hits 69 | . 14 37 18 Projectile 69 | . 14 37 18 Critical Strikes 5 | . 1 1 3 Damage Taken 1067 | . 176 512 379 Core 250 | . 50 120 80 Absorbed by Shields . | . . . . Core Remaining (%) 100 | 100 . . . Volleys Fired 99 | 13 46 30 10 Largest 2 | 2 2 2 2 Hottest 110 | 100 100 110 110 Shots Fired 194 | 26 89 60 19 Gun 177 | 26 89 57 5 Cannon 13 | . . 3 10 Launcher 4 | . . . 4 Special . | . . . . Kinetic . | . . . . Thermal 186 | 25 86 60 15 Explosive 4 | . . . 4 Electromagnetic 4 | 1 3 . . Robot Hit Streak 14 | 5 10 14 6 Robot Miss Streak 5 | 2 5 2 1 Penetration Max . | . . . . Secondary Targets 2 | . . 2 . Max Gunslinging Chain 1 | . . 1 . Shots Hit Robots 129 | 16 48 50 15 Core Hits 43 | 6 18 14 5 Critical Kills 1 | . . . 1 Critical Parts Destroyed . | . . . . Critical Strikes 13 | 1 6 5 1 Burn 12 | 1 6 5 . Meltdown 1 | . . . 1 Melee Attacks . | . . . . Impact . | . . . . Slashing . | . . . . Piercing . | . . . . Sneak Attacks . | . . . . Combat Hostiles . | . . . . Follow-up Attacks . | . . . . Damage Inflicted 1973 | 201 630 656 486 Guns 1469 | 201 624 619 25 Cannons 211 | . . 37 174 Explosions 287 | . . . 287 Melee . | . . . . Ramming 6 | . 6 . . Kinetic . | . . . . Thermal 1680 | 201 624 656 199 Explosive 287 | . . . 287 Electromagnetic . | . . . . Impact . | . . . . Slashing . | . . . . Piercing . | . . . . Highest Corruption . | . . . . Average Corruption . | . . . . Corruption Purged . | . . . . Corruption Blocked . | . . . . Overload Shots . | . . . . Overflow Damage . | . . . . Projectiles . | . . . . Explosions . | . . . . Melee . | . . . . Knockbacks . | . . . . Impact . | . . . . Kinetic . | . . . . Secondary . | . . . . Self-Inflicted Damage 33 | . . . 33 Shots 2 | . . . 2 Rammed 3 | . 2 1 . Targets Rammed 3 | . 2 1 . Kicked . | . . . . Crushed . | . . . . Highest Temperature 375 | 156 375 307 . Average Temperature 84 | 51 79 112 . Received Heat Transfer 441 | . 114 309 18 Effects 4 | . 2 2 . Energy Bleed 2 | . 2 . . Interference 2 | . . 2 . Siege Activations . | . . . . Martial Activations . | . . . . Shielding Activations . | . . . . Robots Disrupted . | . . . . Combat Hostiles . | . . . . Robots Corrupted . | . . . . Combat Hostiles . | . . . . Parts Fried . | . . . . Impact Corruptions . | . . . . Robots Melted 5 | . 1 3 1 Combat Hostiles 5 | . 1 3 1 Parts Melted 17 | 2 3 11 1 Heat Transferred 5550 | 666 2220 2220 444 Parts Sabotaged . | . . . . Parts Stolen . | . . . . Parts Stripped . | . . . . Power Chain Reactions . | . . . . Alert | -11 -10 -10 -10 ------- Run | Yrd Mat Min Sub Maximum Alert Level . | . . . . Low Security (%) 100 | 100 100 100 . Level 1 . | . . . . Level 2 . | . . . . Level 3 . | . . . . Level 4 . | . . . . Level 5 . | . . . . High Security . | . . . . Max Security . | . . . . Peak Influence 95 | 5 50 95 . Initial 5 | . . 5 . Average 14 | 1 6 45 . Influence Increases 386 | 25 191 170 . Destroy 0b10 Robot/C 200 | . 80 120 . Destroy 0b10 Robot/NC 60 | 25 30 5 . Destroy Leader 48 | . 18 30 . Successful Hack 31 | . 31 . . Destroy Structure 2 | . 2 . . Lose Combat Pursuer 45 | . 30 15 . Influence Decreases 386 | 25 176 170 15 Entered New Map 18 | . . 10 8 Time Decay 358 | 25 176 150 7 Lost Part 10 | . . 10 . Squads Dispatched 1 | . 1 . . Investigation . | . . . . Extermination . | . . . . Reinforcement 1 | . 1 . . Assault . | . . . . Garrison . | . . . . Intercept . | . . . . Searches Triggered . | . . . . Construction Impeded . | . . . . Haulers Reinforced . | . . . . Active Scanning Responses . | . . . . Cargo Convoy Interrupts . | . . . . Stealth | -11 -10 -10 -10 --------- Run | Yrd Mat Min Sub Distress Signals 1 | . 1 . . Communications Jammed . | . . . . Distress Signals . | . . . . Times Spotted 27 | . 14 7 6 Peak Tracking Total 4 | . 3 2 4 Tactical Retreats 3 | . 2 1 . Traps | -11 -10 -10 -10 ------- Run | Yrd Mat Min Sub Traps Triggered . | . . . . Indirectly . | . . . . Trap Hack Attempts . | . . . . Triggered . | . . . . Disarmed . | . . . . Reprogrammed . | . . . . Reused . | . . . . Traps Extracted . | . . . . Installed . | . . . . Triggered . | . . . . Machines | -11 -10 -10 -10 ---------- Run | Yrd Mat Min Sub Machines Disabled . | . . . . Max in Single Turn . | . . . . Machines Repaired . | . . . . Machines Dismantled . | . . . . Machines Sabotaged . | . . . . Overloaded Fab Kills . | . . . . Hacking | -11 -10 -10 -10 --------- Run | Yrd Mat Min Sub Machines Accessed 8 | . 8 . . Terminals 8 | . 8 . . Fabricators . | . . . . Repair Stations . | . . . . Recycling Units . | . . . . Scanalyzers . | . . . . Garrison Access . | . . . . Total Hacks 12 | . 12 . . Successful 6 | . 6 . . Failed 5 | . 5 . . Catastrophic 2 | . 2 . . Database Lockouts 1 | . 1 . . Manual 5 | . 5 . . Terminals 12 | . 12 . . Fabricators . | . . . . Repair Stations . | . . . . Recycling Units . | . . . . Scanalyzers . | . . . . Garrison Access . | . . . . Terminal Hacks 6 | . 6 . . Robot Analysis 2 | . 2 . . Prototype ID Bank 1 | . 1 . . Terminal Index 1 | . 1 . . Scanalyzer Index 1 | . 1 . . Locate Traps 1 | . 1 . . Fabricator Hacks . | . . . . Repair Station Hacks . | . . . . Recycling Unit Hacks . | . . . . Scanalyzer . | . . . . Garrison Access Hacks . | . . . . Unauthorized Hacks . | . . . . Terminals . | . . . . Fabricators . | . . . . Repair Stations . | . . . . Recycling Units . | . . . . Scanalyzers . | . . . . Garrison Access . | . . . . Data Cores Recovered . | . . . . Used . | . . . . Hacking Detections 5 | . 5 . . Full Trace Events . | . . . . Feedback Events . | . . . . Feedback Blocked . | . . . . Robot Schematics Acquired . | . . . . Robots Built . | . . . . Authchips . | . . . . Time . | . . . . Total Robot Build Rating . | . . . . Part Schematics Acquired . | . . . . Parts Built . | . . . . Authchips . | . . . . Time . | . . . . Total Part Build Rating . | . . . . Part Studies Acquired . | . . . . Parts Repaired . | . . . . Time . | . . . . Parts Recycled . | . . . . Recycled Matter . | . . . . Retrieved Matter . | . . . . Retrieved Components . | . . . . Parts Scanalyzed . | . . . . Part Schematics Acquired . | . . . . Parts Damaged . | . . . . Bothacking | -11 -10 -10 -10 ------------ Run | Yrd Mat Min Sub Used RIF Installer . | . . . . Robots Hacked . | . . . . Non-combat . | . . . . Combat . | . . . . Robot Hacks Applied . | . . . . Relay Couplers Released . | . . . . Fabnet Peak Effective % . | . . . . Robots Rewired . | . . . . Allies Hacked . | . . . . Hacks Repelled . | . . . . Allies | -11 -10 -10 -10 -------- Run | Yrd Mat Min Sub Total Allies . | . . . . Largest Group . | . . . . Highest-Rated Group . | . . . . Highest-Rated Ally . | . . . . Total Orders . | . . . . Ally Attacks . | . . . . Total Damage . | . . . . Kills . | . . . . Allies Corrupted . | . . . . Allies Melted . | . . . . Intel | -11 -10 -10 -10 ------- Run | Yrd Mat Min Sub Active Infowar (turns) 1125 | 14 1057 54 . Terrain 1125 | 14 1057 54 . Robot Analysis Total 2 | . 2 . . Derelict Logs Recovered 1 | . . . 1 Drone Launches . | . . . . Drone Recoveries . | . . . . Exploration | -11 -10 -10 -10 ------------- Run | Yrd Mat Min Sub Turns Passed 1594 | 171 1057 318 48 Spaces Moved 755 | 76 548 122 9 Core 5 | 5 . . . Treads 750 | 71 548 122 9 Legs . | . . . . Wheels . | . . . . Hover . | . . . . Flight . | . . . . Fastest Speed 50 | 50 160 160 160 Average Speed 159 | 154 160 160 160 Slowest Speed 160 | 160 160 160 160 Overloaded Moves . | . . . . Propulsion Burnouts . | . . . . Robots Hopped . | . . . . Potential Cave-ins . | . . . . Cave-ins Triggered . | . . . . Exploration Rate (%) 27 | 4 79 24 3 Regions Visited 3 Branch Regions 2 Pre-discovered Areas 1 | . . . 1 Known Exits Taken . | . . . . Unknown Exits Taken 3 | 1 1 1 . Scrap Searched . | . . . . Spaces Dug . | . . . . Terrain Destroyed 24 | . . . 24 Melee . | . . . . Projectile . | . . . . AOE 24 | . . . 24 Terrain Rammed . | . . . . Walls Destroyed . | . . . . Machines Disabled . | . . . . Actions | -11 -10 -10 -10 --------- Run | Yrd Mat Min Sub Total 948 | 100 641 184 23 Wait 43 | . 17 26 . Move 752 | 75 547 121 9 Hop . | . . . . Pick Up 19 | 4 15 . . Fast Attach 7 | 7 . . . Attach 5 | . . 1 4 Detach . | . . . . Swap 10 | 1 6 3 . Drop 10 | . 8 2 . Fire 99 | 13 46 30 10 Melee . | . . . . Ram . | . . . . Kick . | . . . . Crush 3 | . 2 1 . Escape Stasis . | . . . . Rewire . | . . . . Trap . | . . . . Miscellaneous . | . . . . Route ------- -11/Scrapyard -10/Materials (discovered 3 exits: [*Mat x2] / [*Min]) -10/Mines -10/Subcaves History --------- Turn | Location | Event 27 | -11/Scrapyard | Discovered new exit (range 16) 172 | -11/Scrapyard | Entered Materials 180 | -10/Materials | Discovered new exit (range 16) 308 | -10/Materials | Build established: Mutant 364 | -10/Materials | Discovered new exit (range 11) 540 | -10/Materials | Central database locked down 705 | -10/Materials | Discovered new exit (range 5) 1229 | -10/Materials | Entered Mines 1236 | -10/Mines | Core integrity fell below 50% 1261 | -10/Mines | Met a Derelict bent on vengeance 1532 | -10/Mines | Discovered new exit (range 9) 1547 | -10/Mines | Entered Subcaves 1548 | -10/Subcaves | Approached by a straggling Scientist 1551 | -10/Subcaves | Learned location of Zion (-6) 1567 | -10/Subcaves | A Subdweller sparked back to life 1567 | -10/Subcaves | A Subdweller sparked back to life 1577 | -10/Subcaves | Core integrity fell below 20% 1595 | -10/Subcaves | Destroyed by 2B-NNU(R) with Subdweller Machine Gun Last Messages --------------- nasty situation. At least I think I can... The group I got separated from was talking about a shortcut back to the UFD." 01551_ Acquired derelict log, extracted data. World map updated: -6/Zion. 01560_ OI-M7Z(R) suffers critical hit (Meltdown). 01560_ Disposable Heat Sink melted. 01565_ ZR-BCV(R) affixes Scrap Shield Fragment to Scrap Shield. 01567_ 2B-NNU(R) creaks and sparks as it begins to move. 01567_ OT-6I0(R) creaks and sparks as it begins to move. 01575_ Med. Laser destroyed. 01576_ Subatomizers dissect the Sub. Optics. 01576_ 8C-BG6(R) destroyed. 01576_ OT-6I0(R) destroyed. 01576_ Lgt. Treads destroyed. 01580_ ZR-BCV(R) affixes Scrap Shield Fragment to Scrap Shield. 01581_ Critical hit (Destroy). 01581_ Lgt. Treads destroyed. 01582_ ZR-BCV(R) destroyed. 01584_ Lgt. Ion Engine destroyed. 01594_ 2B-NNU(R) affixes Scrap Shield Fragment to Scrap Shield. Map ----- +----------------------------------------------------+ | ?????????????????????????????????????????????????? | | ?????????????????????????????????????????????????? | | ?????????????????????????????????????????????????? | | ?????????????????????????????????????????????????? | | ?????????????????????????????????????????????????? | | ?????????????????????????????????????????????????? | | ?????????????????????????????????????????????????? | | ?????????????????????????????????????????????????? | | ?????????????????????????????????????????????????? | | ?????????????????????????????????????????????????? | | ?????????????????????????????????????????????????? | | ?????????????????????????????????????????????????? | | ?????????????????????????????????????????????????? | | ??????????????????????##??????????##?????????????? | | ???????????????????? #" #???????? ##????????????? | | ???????????????????? "" #??????? ##????##?????? | | ????????????????????#"" ##????? #### ?????? | | ????????????????????? " ????# ?????? | | ?????????????????????"" ??## ?????? | | ?????????????????????? %! #?## R ????????? | | ?????????????????????##=%* ### #???????????? | | ??????????????????#### ! #???????????? | | ??????????????????# ##??????????? | | ????????????? ### ! #??????????? | | ????????????????# < *& #???????? | | ??????????# [ @## ### #???????? | | ???????????# # ####### #???? #???????? | | ???????????## < ##??????##??????????????? | | ????????????? R ?#????????????????????????? | | ????????????# <# ???????????????????????????? | | ????????????# ???####????????????????????????????? | | ?????????????????????????????????????????????????? | | ?????????????????????????????????????????????????? | | ?????????????????????????????????????????????????? | | ?????????????????????????????????????????????????? | | ?????????????????????????????????????????????????? | | ?????????????????????????????????????????????????? | | ?????????????????????????????????????????????????? | | ?????????????????????????????????????????????????? | | ?????????????????????????????????????????????????? | | ?????????????????????????????????????????????????? | | ?????????????????????????????????????????????????? | | ?????????????????????????????????????????????????? | | ?????????????????????????????????????????????????? | | ?????????????????????????????????????????????????? | | ?????????????????????????????????????????????????? | | ?????????????????????????????????????????????????? | | ?????????????????????????????????????????????????? | | ?????????????????????????????????????????????????? | | ?????????????????????????????????????????????????? | +----------------------------------------------------+ Best States ------------- Heat Dissipation 39 Energy Generation 10 Energy Capacity 250 Matter Stores 300 Matter Capacity 300 Sight Range 16 Terrain Scan Range 16 Terrain Scan Density 10 Evasion (%) 40 Recoil Reduction 2 Item Schematics ----------------- None Robot Schematics ------------------ None Fabricated ------------ Nothing Repaired ---------- Nothing Studied --------- None Alien Tech Used ----------------- None Achievements -------------- None Challenges ------------ None Game ------ Seed LayeredMetamassHarness Manual? 0 Play Time 00:13:49 Cumulative 141.7 hours Start 2026.09.15 @ 09:02:56 End 2026.09.15 @ 09:16:08 Sessions 1 Manual Loads 0 Difficulty Rogue Special Mode None Game No. 116 Rogue 116 Adventurer 0 Explorer 0 Win Type - Total 1 Types 1/0/0/0/0/0/0/0/0/0 Lore% 21 Gallery% 46 Achievement% 31 Wizard Run 0 Options --------- Layout 1 ASCII 0 Keyboard 1 Movement Numpad Keybinds 0 Fullscreen 1 Font 32/SmallcapsGlow Map View 77x35 Zoom Use 0% Tactical HUD 1 Map Filters NONE Filters NONE Steam 1 RUN: 2e8cbf60-13ca-4705-aea7-e21142b35f15